fUSD/lending_fUSD_20250105
["ID","MTS","AMOUNT","RATE_DAILY","PERIOD"]
[347739068,1736088642136,-500.0,8.219e-05,2]
[347739069,1736088642146,-500.0,8.219e-05,2]
[347739070,1736088642156,-500.0,8.219e-05,2]
[347739071,1736088642165,-500.0,8.219e-05,2]
[347739072,1736088642175,-1673.43,8.219e-05,2]
[347739073,1736088642184,-2231.65,8.219e-05,2]
[347739074,1736088642195,-538.11,8.219e-05,2]
[347739075,1736088642204,-1008.09,8.219e-05,2]
[347739076,1736088642214,-500.0,8.219e-05,2]
[347739077,1736088642223,-500.0,8.219e-05,2]
[347739078,1736088642233,-1008.87,8.219e-05,2]
[347739079,1736088642242,-519.54,8.219e-05,2]
[347739080,1736088642251,-500.0,8.219e-05,2]
[347739081,1736088642261,-822.67,8.219e-05,2]
[347739082,1736088642270,-500.0,8.219e-05,2]
[347739083,1736088642279,-500.0,8.219e-05,2]
[347739084,1736088642288,-552.41,8.219e-05,2]
[347739085,1736088642297,-500.0,8.219e-05,2]
[347739086,1736088642307,-578.84,8.219e-05,2]
[347739087,1736088642317,-500.0,8.219e-05,2]
[347739088,1736088642326,-500.0,8.219e-05,2]
[347739089,1736088642336,-588.95,8.219e-05,2]
[347739090,1736088642345,-4601.41,8.219e-05,2]
[347739091,1736088642355,-656.59,8.219e-05,2]
[347739092,1736088642367,-860.4,8.219e-05,2]
[347739093,1736088642377,-810.01,8.219e-05,2]
[347739094,1736088642387,-500.0,8.219e-05,2]
[347739095,1736088642396,-500.0,8.219e-05,2]
[347739096,1736088642407,-798.87,8.219e-05,2]
[347739097,1736088642416,-500.0,8.219e-05,2]
[347739098,1736088642426,-558.05,8.219e-05,2]
[347739099,1736088642436,-1037.16,8.219e-05,2]
[347739100,1736088642448,-500.0,8.219e-05,2]
[347739101,1736088642460,-500.0,8.219e-05,2]
[347739102,1736088642470,-500.0,8.219e-05,2]
[347739103,1736088642480,-798.02,8.219e-05,2]
[347739104,1736088642489,-500.0,8.219e-05,2]
[347739105,1736088642499,-500.0,8.219e-05,2]
[347739106,1736088642508,-500.0,8.219e-05,2]
[347739107,1736088642519,-500.0,8.219e-05,2]
[347739108,1736088642528,-187.09103476,8.219e-05,2]
[347739109,1736088642538,-631.50961126,8.219e-05,2]
[347739110,1736088642548,-626.85,8.219e-05,2]
[347739111,1736088642557,-500.0,8.219e-05,2]
[347739112,1736088642568,-920.34,8.219e-05,2]
[347739113,1736088642577,-500.0,8.219e-05,2]
[347739114,1736088642587,-500.0,8.219e-05,2]
[347739115,1736088642597,-2241.04,8.219e-05,2]
[347739116,1736088642606,-734.38,8.219e-05,2]
[347739117,1736088642616,-500.0,8.219e-05,2]
[347739118,1736088642626,-560.28,8.219e-05,2]
[347739119,1736088642635,-500.0,8.219e-05,2]
[347739120,1736088642645,-500.0,8.219e-05,2]
[347739121,1736088642655,-500.0,8.219e-05,2]
[347739128,1736088642904,-500.0,8.219e-05,2]
[347739129,1736088642914,-500.0,8.219e-05,2]
[347739130,1736088642924,-500.0,8.219e-05,2]
[347739131,1736088642934,-814.44,8.219e-05,2]
[347739132,1736088642944,-603.48,8.219e-05,2]
[347739133,1736088642954,-686.2,8.219e-05,2]
[347739134,1736088642964,-500.0,8.219e-05,2]
[347739135,1736088642973,-500.0,8.219e-05,2]
[347739136,1736088642983,-500.0,8.219e-05,2]
[347739137,1736088642994,-500.0,8.219e-05,2]
[347739138,1736088643004,-504.64,8.219e-05,2]
[347739139,1736088643014,-500.0,8.219e-05,2]
[347739140,1736088643023,-500.0,8.219e-05,2]
[347739141,1736088643033,-598.61,8.219e-05,2]
[347739142,1736088643043,-412.04262915,8.219e-05,2]
[347739143,1736088643053,-970.15,8.219e-05,2]
[347739144,1736088643063,-500.0,8.219e-05,2]
[347739145,1736088643073,-503.0,8.219e-05,2]
[347739146,1736088643083,-500.0,8.219e-05,7]
[347739147,1736088643094,-598.92,8.219e-05,2]
[347739148,1736088643103,-870.34,8.219e-05,2]
[347739149,1736088643113,-500.0,8.219e-05,2]
[347739150,1736088643122,-561.67,8.219e-05,2]
[347739151,1736088643132,-599.13,8.219e-05,2]
[347739152,1736088643141,-577.37,8.219e-05,2]
[347739153,1736088643151,-1374.03,8.219e-05,2]
[347739154,1736088643160,-500.0,8.219e-05,2]
[347739155,1736088643170,-500.0,8.219e-05,2]
[347739156,1736088643179,-913.29,8.219e-05,2]
[347739157,1736088643189,-1483.17,8.219e-05,2]
[347739159,1736088643200,-607.47,8.219e-05,2]
[347739161,1736088643209,-500.0,8.219e-05,2]
[347739163,1736088643219,-1384.98,8.219e-05,2]
[347739164,1736088643229,-500.0,8.219e-05,2]
[347739165,1736088643239,-543.44,8.219e-05,2]
[347739166,1736088643248,-1286.2,8.219e-05,2]
[347739167,1736088643258,-500.0,8.219e-05,2]
[347739168,1736088643268,-500.0,8.219e-05,2]
[347739169,1736088643278,-515.88,8.219e-05,2]
[347739170,1736088643287,-963.0,8.219e-05,2]
[347739171,1736088643296,-556.77,8.219e-05,2]
[347739172,1736088643306,-500.0,8.219e-05,2]
[347739173,1736088643316,-965.51,8.219e-05,2]
[347739174,1736088643328,-500.0,8.219e-05,2]
[347739175,1736088643338,-632.25,8.219e-05,2]
[347739176,1736088643347,-574.84,8.219e-05,2]
[347739177,1736088643358,-1412.85,8.219e-05,2]
[347739178,1736088643371,-1091.32,8.219e-05,2]
[347739179,1736088643381,-1417.04,8.219e-05,2]
[347739180,1736088643390,-500.0,8.219e-05,2]
[347739181,1736088643400,-500.0,8.219e-05,2]
[347739182,1736088643410,-718.45,8.219e-05,2]
[347739183,1736088643420,-500.0,8.219e-05,2]
[347739184,1736088643430,-500.0,8.219e-05,2]
[347739185,1736088643441,-500.0,8.219e-05,2]
[347739186,1736088643451,-500.0,8.219e-05,2]
[347739187,1736088643461,-968.22,8.219e-05,2]
[347739188,1736088643471,-555.72,8.219e-05,2]
[347739189,1736088643480,-500.0,8.219e-05,2]
[347739190,1736088643490,-500.0,8.219e-05,2]
[347739191,1736088643500,-500.0,8.219e-05,2]
[347739192,1736088643509,-500.0,8.219e-05,2]
[347739193,1736088643519,-605.84,8.219e-05,2]
[347739194,1736088643528,-596.18,8.219e-05,2]
[347739195,1736088643538,-500.0,8.219e-05,2]
[347739196,1736088643548,-610.95,8.219e-05,2]
[347739197,1736088643558,-625.16,8.219e-05,2]
[347739198,1736088643567,-500.0,8.219e-05,2]
[347739199,1736088643577,-1217.16,8.219e-05,2]
[347739200,1736088643587,-764.25,8.219e-05,2]
[347739201,1736088643597,-1217.16,8.219e-05,2]
[347739202,1736088643606,-1014.88,8.219e-05,2]
[347739203,1736088643616,-500.0,8.219e-05,2]
[347739204,1736088643627,-508.56,8.219e-05,2]
[347739205,1736088643636,-500.0,8.219e-05,2]
[347739206,1736088643646,-545.42,8.219e-05,2]
[347739207,1736088643656,-1097.3,8.219e-05,2]
[347739208,1736088643664,-768.49,8.219e-05,2]
[347739209,1736088643674,-500.0,8.219e-05,2]
[347739211,1736088643683,-500.0,8.219e-05,2]
[347739213,1736088643694,-500.0,8.219e-05,2]
[347739214,1736088643704,-563.59,8.219e-05,2]
[347739216,1736088643714,-763.9,8.219e-05,2]
[347739218,1736088643723,-500.0,8.219e-05,2]
[347739220,1736088643732,-566.7,8.219e-05,2]
[347739222,1736088643742,-500.0,8.219e-05,2]
[347739225,1736088643751,-614.33,8.219e-05,2]
[347739227,1736088643761,-500.0,8.219e-05,2]
[347739229,1736088643770,-1046.03,8.219e-05,2]
[347739231,1736088643779,-736.4,8.219e-05,2]
[347739233,1736088643789,-500.0,8.219e-05,2]
[347739235,1736088643800,-500.0,8.219e-05,2]
[347739237,1736088643809,-500.0,8.219e-05,2]
[347739238,1736088643819,-500.0,8.219e-05,2]
[347739240,1736088643828,-527.49,8.219e-05,2]
[347739242,1736088643838,-500.0,8.219e-05,2]
[347739244,1736088643848,-500.0,8.219e-05,2]
[347739246,1736088643857,-3361.51,8.219e-05,2]
[347739248,1736088643866,-938.52,8.219e-05,2]
[347739250,1736088643876,-500.0,8.219e-05,2]
[347739252,1736088643885,-500.0,8.219e-05,2]
[347739254,1736088643894,-500.0,8.219e-05,2]
[347739256,1736088643903,-3473.0,8.219e-05,2]
[347739258,1736088643912,-500.0,8.219e-05,2]
[347739260,1736088643922,-881.7,8.219e-05,2]
[347739262,1736088643931,-500.0,8.219e-05,2]
[347739264,1736088643941,-500.0,8.219e-05,2]
[347739266,1736088643951,-500.0,8.219e-05,2]
[347739268,1736088643960,-724.35,8.219e-05,2]
[347739270,1736088643970,-500.0,8.219e-05,2]
[347739272,1736088643979,-543.26,8.219e-05,2]
[347739274,1736088643988,-500.0,8.219e-05,2]
[347739276,1736088643998,-422.30283599,8.219e-05,2]
[347739278,1736088644008,-417.41501485,8.219e-05,2]
[347739280,1736088644017,-500.0,8.219e-05,2]
[347739282,1736088644027,-500.0,8.219e-05,2]
[347739284,1736088644037,-500.0,8.219e-05,2]
[347739287,1736088644047,-676.76,8.219e-05,2]
[347739288,1736088644057,-500.0,8.219e-05,2]
[347739291,1736088644067,-500.0,8.219e-05,2]
[347739292,1736088644077,-500.0,8.219e-05,2]
[347739295,1736088644087,-500.0,8.219e-05,2]
[347739297,1736088644097,-1832.31,8.219e-05,2]
[347739299,1736088644107,-500.0,8.219e-05,2]
[347739301,1736088644116,-572.37,8.219e-05,2]
[347739302,1736088644126,-500.0,8.219e-05,2]
[347739304,1736088644138,-500.0,8.219e-05,2]
[347739306,1736088644148,-500.0,8.219e-05,2]
[347739308,1736088644157,-526.4,8.219e-05,2]
[347739310,1736088644167,-500.0,8.219e-05,2]
[347739312,1736088644176,-500.0,8.219e-05,2]
[347739314,1736088644186,-500.0,8.219e-05,2]
[347739316,1736088644197,-2039.82,8.219e-05,2]
[347739319,1736088644208,-919.97,8.219e-05,2]
[347739321,1736088644220,-802.66,8.219e-05,2]
[347739322,1736088644230,-500.0,8.219e-05,2]
[347739325,1736088644240,-500.0,8.219e-05,2]
[347739326,1736088644249,-2561.32,8.219e-05,2]
[347739329,1736088644259,-739.71,8.219e-05,2]
[347739331,1736088644268,-558.45,8.219e-05,2]
[347739332,1736088644278,-602.27,8.219e-05,2]
[347739334,1736088644287,-500.0,8.219e-05,2]
[347739337,1736088644298,-500.0,8.219e-05,2]
[347739338,1736088644307,-2547.77,8.219e-05,2]
[347739341,1736088644317,-500.0,8.219e-05,2]
[347739343,1736088644327,-500.0,8.219e-05,2]
[347739345,1736088644337,-628.11,8.219e-05,2]
[347739346,1736088644346,-755.79,8.219e-05,2]
[347739348,1736088644356,-500.0,8.219e-05,2]
[347739350,1736088644368,-500.0,8.219e-05,2]
[347739353,1736088644379,-500.0,8.219e-05,2]
[347739354,1736088644388,-500.0,8.219e-05,2]
[347739356,1736088644398,-500.0,8.219e-05,2]
[347739358,1736088644408,-1678.51,8.219e-05,2]
[347739360,1736088644419,-637.32,8.219e-05,2]
[347739362,1736088644428,-1939.56,8.219e-05,2]
[347739364,1736088644438,-500.0,8.219e-05,2]
[347739366,1736088644448,-500.0,8.219e-05,2]
[347739368,1736088644458,-500.0,8.219e-05,2]
[347739370,1736088644468,-500.0,8.219e-05,2]
[347739372,1736088644478,-1504.4,8.219e-05,2]
[347739374,1736088644487,-967.35,8.219e-05,2]
[347739376,1736088644497,-2938.08,8.219e-05,2]
[347739378,1736088644507,-500.0,8.219e-05,2]
[347739380,1736088644516,-1484.18,8.219e-05,2]
[347739382,1736088644526,-575.66,8.219e-05,2]
[347739384,1736088644535,-500.0,8.219e-05,2]
[347739386,1736088644545,-500.0,8.219e-05,2]
[347739388,1736088644556,-527.8,8.219e-05,2]
[347739390,1736088644566,-500.0,8.219e-05,2]
[347739392,1736088644575,-7180.0,8.219e-05,2]
[347739394,1736088644585,-737.38,8.219e-05,2]
[347739396,1736088644594,-528.68,8.219e-05,2]
[347739398,1736088644604,-500.0,8.219e-05,2]
[347739400,1736088644614,-4188.92,8.219e-05,2]
[347739402,1736088644624,-4188.92,8.219e-05,2]
[347739404,1736088644634,-500.0,8.219e-05,2]
[347739406,1736088644644,-500.0,8.219e-05,2]
[347739408,1736088644653,-865.87,8.219e-05,2]
[347739410,1736088644662,-500.0,8.219e-05,2]
[347739412,1736088644672,-500.0,8.219e-05,2]
[347739414,1736088644682,-699.37,8.219e-05,2]
[347739416,1736088644692,-500.0,8.219e-05,2]
[347739418,1736088644702,-500.0,8.219e-05,2]
[347739420,1736088644712,-944.8,8.219e-05,2]
[347739422,1736088644721,-1392.46,8.219e-05,2]
[347739424,1736088644730,-2079.08,8.219e-05,2]
[347739426,1736088644740,-1443.92,8.219e-05,2]
[347739428,1736088644749,-500.0,8.219e-05,2]
[347739430,1736088644759,-500.0,8.219e-05,2]
[347739432,1736088644768,-500.0,8.219e-05,2]
[347739434,1736088644777,-795.66,8.219e-05,2]
[347739436,1736088644787,-1036.34,8.219e-05,2]
[347739438,1736088644796,-500.0,8.219e-05,2]
[347739439,1736088644805,-5368.55,8.219e-05,2]
[347739440,1736088644814,-500.0,8.219e-05,2]
[347739441,1736088644823,-1450.42,8.219e-05,2]
[347739442,1736088644832,-500.0,8.219e-05,2]
[347739443,1736088644841,-500.0,8.219e-05,2]
[347739444,1736088644850,-500.0,8.219e-05,2]
[347739445,1736088644860,-1779.94,8.219e-05,2]
[347739446,1736088644869,-1408.14,8.219e-05,2]
[347739447,1736088644878,-700.3,8.219e-05,2]
[347739448,1736088644887,-532.43,8.219e-05,2]
[347739449,1736088644896,-2917.33,8.219e-05,2]
[347739450,1736088644905,-500.0,8.219e-05,2]
[347739452,1736088644915,-500.0,8.219e-05,2]
[347739454,1736088644924,-500.0,8.219e-05,2]
[347739456,1736088644934,-500.0,8.219e-05,2]
[347739458,1736088644945,-500.0,8.219e-05,2]
[347739460,1736088644955,-889.13,8.219e-05,2]
[347739462,1736088644964,-1210.96,8.219e-05,2]
[347739464,1736088644973,-672.79,8.219e-05,2]
[347739466,1736088644983,-500.0,8.219e-05,2]
[347739468,1736088644993,-500.0,8.219e-05,2]
[347739470,1736088645002,-2270.88,8.219e-05,2]
[347739472,1736088645011,-1099.21,8.219e-05,2]
[347739474,1736088645021,-500.0,8.219e-05,2]
[347739476,1736088645030,-500.0,8.219e-05,2]
[347739478,1736088645040,-500.0,8.219e-05,2]
[347739480,1736088645050,-3236.26,8.219e-05,2]
[347739482,1736088645059,-5212.5,8.219e-05,2]
[347739484,1736088645069,-339.65554632,8.219e-05,2]
[347739486,1736088645078,-500.0,8.219e-05,2]
[347739488,1736088645088,-500.0,8.219e-05,2]
[347739490,1736088645098,-500.0,8.219e-05,2]
[347739492,1736088645108,-1556.79,8.219e-05,2]
[347739494,1736088645117,-500.0,8.219e-05,2]
[347739496,1736088645127,-505.5394161,8.219e-05,2]
[347739498,1736088645136,-500.0,8.219e-05,2]
[347739501,1736088645146,-756.09,8.219e-05,2]
[347739502,1736088645156,-1042.74,8.219e-05,2]
[347739505,1736088645166,-4849.9,8.219e-05,2]
[347739507,1736088645175,-500.0,8.219e-05,2]
[347739509,1736088645185,-500.0,8.219e-05,2]
[347739511,1736088645196,-500.0,8.219e-05,2]
[347739513,1736088645206,-1032.58,8.219e-05,2]
[347739515,1736088645216,-500.0,8.219e-05,2]
[347739517,1736088645226,-500.0,8.219e-05,2]
[347739519,1736088645235,-1168.67,8.219e-05,2]
[347739521,1736088645245,-704.61,8.219e-05,2]
[347739523,1736088645254,-534.28,8.219e-05,2]
[347739525,1736088645264,-500.0,8.219e-05,2]
[347739527,1736088645273,-500.0,8.219e-05,2]
[347739529,1736088645282,-2585.05,8.219e-05,2]
[347739531,1736088645292,-500.0,8.219e-05,2]
[347739539,1736088645361,-1062.79,8.219e-05,2]
[347739541,1736088645374,-500.0,8.219e-05,2]
[347739543,1736088645384,-585.25,8.219e-05,2]
[347739545,1736088645394,-500.0,8.219e-05,2]
[347739547,1736088645403,-500.0,8.219e-05,2]
[347739549,1736088645413,-1111.51,8.219e-05,2]
[347739551,1736088645422,-2756.73,8.219e-05,2]
[347739553,1736088645431,-3895.35,8.219e-05,2]
[347739555,1736088645442,-868.14,8.219e-05,2]
[347739557,1736088645451,-665.5,8.219e-05,2]
[347739559,1736088645460,-582.66,8.219e-05,2]
[347739561,1736088645469,-904.94,8.219e-05,2]
[347739563,1736088645479,-1046.44,8.219e-05,2]
[347739565,1736088645488,-625.3,8.219e-05,2]
[347739567,1736088645497,-4117.25,8.219e-05,2]
[347739569,1736088645507,-500.0,8.219e-05,2]
[347739571,1736088645516,-500.0,8.219e-05,2]
[347739573,1736088645525,-862.48,8.219e-05,2]
[347739575,1736088645534,-790.34,8.219e-05,2]
[347739577,1736088645543,-500.0,8.219e-05,2]
[347739579,1736088645553,-2131.31,8.219e-05,2]
[347739581,1736088645562,-2398.78,8.219e-05,2]
[347739583,1736088645571,-971.41,8.219e-05,2]
[347739585,1736088645580,-2160.48,8.219e-05,2]
[347739587,1736088645589,-500.0,8.219e-05,2]
[347739589,1736088645599,-500.0,8.219e-05,2]
[347739591,1736088645607,-500.0,8.219e-05,2]
[347739593,1736088645619,-614.97,8.219e-05,2]
[347739595,1736088645628,-2020.06,8.219e-05,2]
[347739597,1736088645638,-697.71,8.219e-05,2]
[347739599,1736088645647,-500.0,8.219e-05,2]
[347739601,1736088645656,-837.45,8.219e-05,2]
[347739603,1736088645666,-1341.14,8.219e-05,2]
[347739605,1736088645675,-1143.01,8.219e-05,2]
[347739609,1736088645685,-656.43,8.219e-05,2]
[347739611,1736088645695,-500.0,8.219e-05,2]
[347739613,1736088645704,-500.0,8.219e-05,2]
[347739615,1736088645714,-1667.39,8.219e-05,2]
[347739617,1736088645723,-500.0,8.219e-05,2]
[347739619,1736088645732,-500.0,8.219e-05,2]
[347739621,1736088645741,-500.88,8.219e-05,2]
[347739623,1736088645750,-531.88,8.219e-05,2]
[347739626,1736088645759,-500.0,8.219e-05,2]
[347739628,1736088645769,-4384.56,8.219e-05,2]
[347739630,1736088645778,-500.0,8.219e-05,2]
[347739632,1736088645788,-1109.43,8.219e-05,2]
[347739634,1736088645797,-679.54,8.219e-05,2]
[347739636,1736088645806,-500.0,8.219e-05,2]
[347739637,1736088645815,-500.0,8.219e-05,2]
[347739639,1736088645824,-818.99,8.219e-05,2]
[347739642,1736088645834,-1244.62,8.219e-05,2]
[347739643,1736088645844,-714.74,8.219e-05,2]
[347739646,1736088645853,-500.0,8.219e-05,2]
[347739647,1736088645863,-582.89,8.219e-05,2]
[347739650,1736088645872,-1010.03,8.219e-05,2]
[347739651,1736088645882,-500.0,8.219e-05,2]
[347739653,1736088645891,-4247.44,8.219e-05,2]
[347739655,1736088645900,-537.31,8.219e-05,2]
[347739657,1736088645909,-500.0,8.219e-05,2]
[347739659,1736088645918,-1877.91,8.219e-05,2]
[347739661,1736088645928,-500.0,8.219e-05,2]
[347739663,1736088645937,-500.0,8.219e-05,2]
[347739665,1736088645947,-1289.27,8.219e-05,2]
[347739667,1736088645956,-771.33,8.219e-05,2]
[347739669,1736088645965,-633.32,8.219e-05,2]
[347739671,1736088645974,-500.0,8.219e-05,2]
[347739673,1736088645983,-881.19,8.219e-05,2]
[347739675,1736088645993,-1415.78,8.219e-05,2]
[347739677,1736088646003,-1161.48,8.219e-05,2]
[347739679,1736088646012,-500.0,8.219e-05,2]
[347739681,1736088646022,-3403.52,8.219e-05,2]
[347739683,1736088646031,-500.0,8.219e-05,2]
[347739685,1736088646041,-500.0,8.219e-05,2]
[347739687,1736088646050,-878.66,8.219e-05,2]
[347739689,1736088646059,-553.24,8.219e-05,2]
[347739691,1736088646069,-500.0,8.219e-05,2]
[347739693,1736088646079,-1073.67,8.219e-05,2]
[347739695,1736088646088,-654.57,8.219e-05,2]
[347739697,1736088646097,-500.0,8.219e-05,2]
[347739699,1736088646107,-662.97,8.219e-05,2]
[347739701,1736088646116,-1284.56,8.219e-05,2]
[347739703,1736088646125,-500.0,8.219e-05,2]
[347739705,1736088646135,-1439.62,8.219e-05,2]
[347739707,1736088646144,-510.2,8.219e-05,2]
[347739709,1736088646153,-2312.26,8.219e-05,2]
[347739711,1736088646163,-623.32,8.219e-05,2]
[347739713,1736088646172,-500.0,8.219e-05,2]
[347739715,1736088646181,-500.0,8.219e-05,2]
[347739717,1736088646191,-500.0,8.219e-05,2]
[347739719,1736088646200,-1009.54,8.219e-05,2]
[347739721,1736088646210,-1022.52,8.219e-05,2]
[347739723,1736088646219,-500.0,8.219e-05,2]
[347739725,1736088646228,-500.0,8.219e-05,2]
[347739727,1736088646238,-500.0,8.219e-05,2]
[347739729,1736088646248,-2040.99,8.219e-05,2]
[347739731,1736088646258,-746.31,8.219e-05,2]
[347739733,1736088646268,-594.54,8.219e-05,2]
[347739735,1736088646277,-733.22,8.219e-05,2]
[347739737,1736088646286,-1032.33,8.219e-05,2]
[347739739,1736088646295,-549.79,8.219e-05,2]
[347739741,1736088646304,-920.55,8.219e-05,2]
[347739743,1736088646313,-2359.74,8.219e-05,2]
[347739745,1736088646323,-2429.6,8.219e-05,2]
[347739747,1736088646333,-556.89,8.219e-05,2]
[347739749,1736088646342,-1000.0,8.219e-05,2]
[347739751,1736088646351,-250.0,8.219e-05,2]
[347739753,1736088646360,-167.57,8.219e-05,2]
[347739755,1736088646373,-250.49,8.23e-05,2]
[347739757,1736088646382,-943.07,8.393e-05,2]
[347739759,1736088646392,-48593.23604904,8.422e-05,2]
[347739761,1736088646401,-500.0,8.492e-05,2]
[347739763,1736088646411,-500.0,8.492e-05,2]
[347739765,1736088646420,-677.14,8.492e-05,2]
[347739767,1736088646429,-500.0,8.492e-05,2]
[347739769,1736088646439,-1275.61,8.492e-05,2]
[347739771,1736088646450,-156.503976,8.493e-05,2]
[347739773,1736088646460,-500.0,8.493e-05,2]
[347739775,1736088646469,-500.0,8.493e-05,2]
[347739777,1736088646479,-500.0,8.493e-05,2]
[347739779,1736088646488,-760.43,8.493e-05,2]
[347739781,1736088646497,-500.0,8.493e-05,2]
[347739783,1736088646506,-705.02,8.493e-05,2]
[347739785,1736088646515,-552.44,8.493e-05,2]
[347739786,1736088646524,-1434.98,8.493e-05,2]
[347739788,1736088646532,-500.0,8.493e-05,2]
[347739790,1736088646541,-500.0,8.493e-05,2]
[347739792,1736088646550,-500.0,8.493e-05,2]
[347739794,1736088646559,-500.0,8.493e-05,2]
[347739796,1736088646568,-2144.39,8.493e-05,2]
[347739798,1736088646577,-500.0,8.493e-05,2]
[347739800,1736088646586,-500.0,8.493e-05,2]
[347739802,1736088646595,-570.39,8.493e-05,2]
[347739804,1736088646604,-1799.96,8.493e-05,2]
[347739806,1736088646613,-500.0,8.493e-05,2]
[347739808,1736088646623,-500.0,8.493e-05,2]
[347739810,1736088646632,-612.35216311,8.493e-05,2]
[347739812,1736088646641,-500.0,8.493e-05,2]
[347739814,1736088646650,-1387.76,8.493e-05,2]
[347739816,1736088646659,-2272.66,8.493e-05,2]
[347739818,1736088646668,-500.0,8.493e-05,2]
[347739820,1736088646677,-500.0,8.493e-05,2]
[347739822,1736088646686,-500.0,8.493e-05,2]
[347739824,1736088646696,-500.0,8.493e-05,2]
[347739826,1736088646705,-675.29,8.493e-05,2]
[347739828,1736088646714,-500.0,8.493e-05,2]
[347739830,1736088646723,-700.21,8.493e-05,2]
[347739832,1736088646731,-671.03,8.493e-05,2]
[347739834,1736088646740,-500.0,8.493e-05,2]
[347739836,1736088646749,-500.0,8.493e-05,2]
[347739838,1736088646758,-500.0,8.493e-05,2]
[347739840,1736088646768,-500.0,8.493e-05,2]
[347739842,1736088646777,-3594.34,8.493e-05,2]
[347739844,1736088646786,-500.0,8.493e-05,2]
[347739846,1736088646795,-404.90096147,8.493e-05,2]
[347739848,1736088646804,-500.0,8.493e-05,2]
[347739850,1736088646813,-684.64,8.493e-05,2]
[347739852,1736088646821,-6117.99,8.493e-05,2]
[347739854,1736088646831,-500.0,8.493e-05,2]
[347739856,1736088646840,-655.72,8.493e-05,2]
[347739858,1736088646849,-500.0,8.493e-05,2]
[347739860,1736088646858,-500.0,8.493e-05,2]
[347739862,1736088646867,-1298.03,8.493e-05,2]
[347739864,1736088646876,-500.0,8.493e-05,2]
[347739866,1736088646885,-500.0,8.493e-05,2]
[347739868,1736088646894,-500.0,8.493e-05,2]
[347739870,1736088646903,-1098.47,8.493e-05,2]
[347739872,1736088646911,-500.0,8.493e-05,2]
[347739874,1736088646920,-573.63,8.493e-05,2]
[347739875,1736088646929,-500.0,8.493e-05,2]
[347739878,1736088646938,-500.0,8.493e-05,2]
[347739880,1736088646948,-500.0,8.493e-05,2]
[347739882,1736088646957,-1388.66,8.493e-05,2]
[347739883,1736088646971,-1388.66,8.493e-05,2]
[347739886,1736088646980,-500.0,8.493e-05,2]
[347739888,1736088646989,-500.0,8.493e-05,2]
[347739890,1736088646999,-500.0,8.493e-05,2]
[347739892,1736088647008,-1290.85,8.493e-05,2]
[347739894,1736088647017,-594.04,8.493e-05,2]
[347739895,1736088647026,-743.07,8.493e-05,2]
[347739898,1736088647035,-1013.41,8.493e-05,2]
[347739900,1736088647045,-500.0,8.493e-05,2]
[347739902,1736088647054,-500.0,8.493e-05,2]
[347739904,1736088647063,-735.81,8.493e-05,2]
[347739906,1736088647072,-500.0,8.493e-05,2]
[347739907,1736088647082,-500.0,8.493e-05,2]
[347739909,1736088647091,-500.0,8.493e-05,2]
[347739912,1736088647101,-500.0,8.493e-05,2]
[347739914,1736088647111,-500.0,8.493e-05,2]
[347739916,1736088647120,-584.3,8.493e-05,2]
[347739918,1736088647130,-500.0,8.493e-05,2]
[347739919,1736088647139,-2077.18,8.493e-05,2]
[347739921,1736088647149,-1447.55,8.493e-05,2]
[347739923,1736088647158,-500.0,8.493e-05,2]
[347739925,1736088647168,-345.40617074,8.493e-05,2]
[347739928,1736088647178,-6663.09,8.493e-05,2]
[347739929,1736088647187,-857.37,8.493e-05,2]
[347739931,1736088647197,-2919.98,8.493e-05,2]
[347739934,1736088647207,-500.0,8.493e-05,2]
[347739936,1736088647216,-500.0,8.493e-05,2]
[347739937,1736088647226,-514.57,8.493e-05,2]